bitfinex-derivatives/quotes_SOLF0:USTF0_20241216
["timestamp","ask_amount","ask_price","bid_price","bid_amount"]
[1734345314400,2.2927,218.11,218.08,8.52443484]
[1734345314601,6.40443484,218.16,218.08,8.52443484]
[1734345314801,2.2926,218.13,218.08,8.52443484]
[1734345315002,6.40443484,218.14,218.08,8.52443484]
[1734345315202,6.40443484,218.16,218.08,8.52443484]
[1734345315594,2.2927,218.12,218.08,8.52443484]
[1734345316903,6.40443484,218.16,218.08,8.52443484]
[1734345317596,6.40443484,218.16,217.94,2.5726]
[1734345317597,6.40443484,218.14,218.06,2.12]
[1734345317998,6.40443484,218.14,218.06,8.52443484]
[1734345318507,2.2929,218.09,218.06,8.52443484]
[1734345318703,6.40443484,218.12,218.06,2.12]
[1734345318908,6.40443484,218.12,217.94,2.5726]
[1734345318909,6.40443484,218.12,218.05,6.40443484]
[1734345319504,8.52443484,218.14,218.07,6.40443484]
[1734345321006,260.04994464,218.14,218.07,6.40443484]
[1734345321201,253.6455098,218.14,218.07,6.40443484]
[1734345321606,260.04994464,218.14,218.07,6.40443484]
[1734345322308,2.293,218.09,218.07,6.40443484]
[1734345322709,6.40443484,218.12,218.05,6.40443484]
[1734345323608,2.2931,218.08,218.05,6.40443484]
[1734345323808,6.40443484,218.12,218.05,6.40443484]
[1734345324035,6.40443484,218.13,218.05,6.40443484]
[1734345324413,2.2931,218.08,218.05,6.40443484]
[1734345325115,255.1877098,218.14,218.05,6.40443484]
[1734345325311,2.2929,218.1,218.05,8.69763484]
[1734345325615,6.40443484,218.13,218.05,8.69763484]
[1734345326004,6.40443484,218.13,218.05,6.40443484]
[1734345326005,2.2931,218.08,218.05,6.40443484]
[1734345327608,255.1877098,218.14,218.07,6.40443484]
[1734345327812,6.40443484,218.13,218.07,6.40443484]
[1734345328308,6.40443484,218.11,218.02,7.72224846]
[1734345328518,6.40443484,218.11,218.04,6.40443484]
[1734345328905,2.2933,218.05,218.04,6.40443484]
[1734345329412,8.52443484,218.14,218.06,2.2932]
[1734345329607,8.52443484,218.14,218.07,6.40443484]
[1734345330006,6.40443484,218.14,218.07,6.40443484]
[1734345330809,2.12,218.15,218.07,6.40443484]
[1734345331009,6.40443484,218.14,218.07,6.40443484]
[1734345331217,2.2929,218.1,218.07,6.40443484]
[1734345332217,2.2929,218.1,218.07,8.69753484]
[1734345332423,2.2927,218.12,218.09,6.40443484]
[1734345335019,6.40443484,218.15,218.09,6.40443484]
[1734345335416,6.40443484,218.15,218.07,2.2931]
[1734345335617,6.40443484,218.17,218.09,6.40443484]
[1734345335819,251.5255098,218.16,218.09,6.40443484]
[1734345336822,2.2927,218.11,218.09,6.40443484]
[1734345337019,251.5255098,218.16,218.09,6.40443484]
[1734345337417,2.2928,218.1,218.09,6.40443484]
[1734345338724,251.5255098,218.14,218.06,4.4132]
[1734345338725,251.5255098,218.14,218.07,6.40443484]
[1734345339428,2.293,218.09,218.07,6.40443484]
[1734345340118,2.2926,218.12,218.07,6.40443484]
[1734345340320,251.5255098,218.14,218.07,6.40443484]
[1734345340517,251.5255098,218.14,218.09,6.40443484]
[1734345340718,2.2928,218.11,218.09,6.40443484]
[1734345341926,2.2928,218.1,218.09,6.40443484]
[1734345345224,6.40443484,218.16,218.09,6.40443484]
[1734345345424,251.5255098,218.17,218.09,6.40443484]
[1734345345624,257.92994464,218.17,218.09,6.40443484]
[1734345347426,2.2927,218.12,218.09,6.40443484]
[1734345351532,2.2925,218.14,218.11,6.40443484]
[1734345351736,2.2925,218.14,218.13,6.40443484]
[1734345352740,295.29342581,218.18,218.14,2.2924]
[1734345352933,293.00132581,218.18,218.1,2.12]
[1734345353231,41.47581601,218.18,218.15,6.40443484]
[1734345353535,2.2922,218.16,218.15,6.40443484]
[1734345354634,2.2923,218.15,218.13,6.40443484]
[1734345355627,2.2925,218.13,218.06,2.2932]
[1734345355830,9.46213484,218.18,218.07,7.19807057]
[1734345356032,9.46213484,218.18,218.08,7.19807057]
[1734345356033,6.40443484,218.16,218.08,7.19807057]
[1734345356234,2.2928,218.11,218.09,6.40443484]
[1734345357032,2.2924,218.14,218.09,6.40443484]
[1734345357236,251.5255098,218.17,218.11,6.40443484]
[1734345357631,263.10764464,218.18,218.13,6.40443484]
[1734345358032,254.5832098,218.18,218.13,6.40443484]
[1734345358235,254.5832098,218.18,218.11,6.40443484]
[1734345358435,6.40443484,218.17,218.1,2.12]
[1734345358630,6.40443484,218.17,218.1,6.40443484]
[1734345359938,2.2927,218.11,218.1,6.40443484]
[1734345360640,2.2928,218.1,218.08,2.12]
[1734345360841,6.40443484,218.15,218.04,2.2934]
[1734345361043,2.12,218.17,218.05,7.1267112]
[1734345361044,6.40443484,218.13,218.05,7.1267112]
[1734345361338,6.40443484,218.13,218.06,6.40443484]
[1734345361751,7.16237466,218.16,218.08,6.40443484]
[1734345361935,253.6455098,218.17,218.1,6.40443484]
[1734345362132,6.40443484,218.17,218.1,6.40443484]
[1734345362734,2.2926,218.13,218.1,6.40443484]
[1734345363437,2.2926,218.12,218.1,6.40443484]
[1734345363839,6.40443484,218.15,218.08,6.40443484]
[1734345364657,2.2929,218.1,218.08,6.40443484]
[1734345365541,6.40443484,218.15,218.06,2.2932]
[1734345365940,6.40443484,218.15,218.08,6.40443484]
[1734345367440,2.2929,218.1,218.08,6.40443484]
[1734345368735,6.40443484,218.15,218.08,6.40443484]
[1734345370246,6.40443484,218.13,218.06,6.40443484]
[1734345370540,6.40443484,218.13,218.01,1.4703]
[1734345370740,2.12,218.14,218.02,7.12937384]
[1734345371042,2.2934,218.05,218.03,11.41380868]
[1734345371238,2.2934,218.05,218.03,6.40443484]
[1734345372552,2.2932,218.07,218.03,6.40443484]
[1734345372746,2.2932,218.07,218.06,6.40443484]
[1734345374149,2.2934,218.05,218.01,2.2937]
[1734345374350,6.40443484,218.1,218.04,6.40443484]
[1734345374945,2.9878,218.11,218.04,6.40443484]
[1734345376549,2.2932,218.07,218.04,6.40443484]
[1734345377051,2.2933,218.06,218.04,6.40443484]
[1734345377447,6.40443484,218.1,218.04,6.40443484]
[1734345377648,6.40443484,218.1,218.02,2.2936]
[1734345377649,6.40443484,218.08,217.92,2.9549]
[1734345377847,6.40443484,218.08,218.02,6.40443484]
[1734345378244,6.40443484,218.08,218.0,6.40443484]
[1734345378453,6.40443484,218.08,217.98,2.12]
[1734345378454,6.40443484,218.08,218.02,6.40443484]
[1734345378775,2.12,218.1,218.02,6.40443484]
[1734345378883,6.40443484,218.08,218.02,6.40443484]
[1734345379959,2.2937,218.02,217.98,4.4141]
[1734345380150,2.2937,218.02,218.01,6.40443484]
[1734345385761,2.2938,218.01,217.99,6.40443484]
[1734345385954,6.40443484,218.06,217.99,6.40443484]
[1734345386161,8.52443484,218.06,217.99,6.40443484]
[1734345386361,2.2938,218.01,217.99,6.40443484]
[1734345386562,8.52443484,218.06,217.99,6.40443484]
[1734345387584,6.40443484,218.04,217.97,6.40443484]
[1734345388171,2.2937,218.02,217.97,6.40443484]
[1734345388379,9.47753484,218.04,217.97,6.40443484]
[1734345389573,2.2941,217.99,217.97,6.40443484]
[1734345389780,1.5431,218.1,217.98,6.40443484]
[1734345389974,1.5431,218.1,217.96,2.12]
[1734345389975,1.5431,218.1,218.04,6.40443484]
[1734345390180,1.5431,218.1,218.06,6.40443484]
[1734345390717,2.293,218.09,218.06,6.40443484]
[1734345392808,7.93443484,218.11,218.04,8.52443484]
[1734345393878,2.2929,218.09,218.04,4.4134]
[1734345394083,2.2929,218.09,218.05,6.40443484]
[1734345395480,2.293,218.08,218.05,6.40443484]
[1734345396177,1.53,218.11,218.05,6.40443484]
[1734345396879,1.53,218.11,218.04,8.52443484]
[1734345397583,2.2931,218.08,218.04,8.52443484]
[1734345397786,1.53,218.11,218.04,8.52443484]
[1734345398581,1.53,218.11,218.06,6.40443484]
[1734345399483,2.2929,218.09,218.06,6.40443484]
[1734345400287,1.53,218.11,218.06,6.40443484]
[1734345400987,1.53,218.11,218.04,8.52443484]
[1734345401183,2.2933,218.06,218.04,8.52443484]
[1734345401494,6.40443484,218.1,218.04,6.40443484]
[1734345401783,6.40443484,218.1,217.94,4.0123]
[1734345401987,6.40443484,218.1,217.95,2.12]
[1734345401988,9.99273484,218.1,217.95,2.12]
[1734345402286,9.99273484,218.1,218.03,6.40443484]
[1734345403216,2.2934,218.05,218.03,6.40443484]
[1734345403379,2.2934,218.05,217.94,4.0123]
[1734345403380,6.40443484,218.08,218.01,6.40443484]
[1734345403580,6.40443484,218.06,217.99,6.40443484]
[1734345403786,2.2938,218.02,217.99,6.40443484]
[1734345404084,6.40443484,218.06,217.99,6.40443484]
[1734345404285,2.2939,218.0,217.99,6.40443484]
[1734345404688,2.2939,218.0,217.97,8.52443484]
[1734345405685,2.2939,218.0,217.97,2.12]
[1734345405878,2.2939,218.0,217.97,8.52443484]
[1734345406681,2.294,217.99,217.98,6.40443484]
[1734345407186,6.40443484,218.04,217.97,2.12]
[1734345407392,2.2941,217.98,217.97,6.40443484]
[1734345407692,1.4946,218.05,217.93,5.57393989]
[1734345407693,6.40443484,218.02,217.95,6.40443484]
[1734345407886,2.2943,217.97,217.95,6.40443484]
[1734345408088,6.40443484,218.02,217.95,6.40443484]
[1734345409183,2.2943,217.97,217.95,6.40443484]
[1734345413296,2.2943,217.97,217.93,7.69393989]
[1734345413615,2.2943,217.96,217.95,6.40443484]
[1734345415493,2.2945,217.94,217.86,1.4745]
[1734345415695,2.12,218.02,217.86,1.4745]
[1734345415696,6.40443484,217.98,217.87,2.12]
[1734345415893,6.40443484,217.98,217.92,6.40443484]
[1734345417193,6.40443484,217.93,217.7,2.12]
[1734345417392,6.40443484,217.83,217.77,6.40443484]
[1734345418500,2.2958,217.82,217.77,8.70063484]
[1734345420196,2.2959,217.81,217.77,6.40443484]
[1734345420395,6.40443484,217.83,217.77,6.40443484]
[1734345420592,6.40443484,217.83,217.75,2.2964]
[1734345420796,6.40443484,217.83,217.76,6.40443484]
[1734345420999,2.2961,217.79,217.76,6.40443484]
[1734345421399,2.12,217.83,217.78,8.70063484]
[1734345421599,6.40443484,217.86,217.78,8.70063484]
[1734345421801,2.12,217.85,217.8,6.40443484]
[1734345422105,8.52443484,217.88,217.82,6.40443484]
[1734345422403,6.40443484,217.9,217.84,6.40443484]
[1734345423307,8.52443484,217.9,217.84,6.40443484]
[1734345424304,4.6052,217.92,217.84,6.40443484]
[1734345424305,1.5366,217.92,217.84,6.40443484]
[1734345424506,2.12,217.92,217.86,6.40443484]
[1734345426109,2.2949,217.91,217.86,6.40443484]
[1734345426505,2.2949,217.91,217.86,8.69973484]
[1734345427004,2.295,217.9,217.86,6.40443484]
[1734345428001,2.295,217.9,217.86,8.69973484]
[1734345428610,2.295,217.9,217.81,2.12]
[1734345428810,2.2951,217.89,217.81,2.12]
[1734345429008,2.12,217.93,217.86,6.40443484]
[1734345429209,6.40443484,217.94,217.86,6.40443484]
[1734345429408,2.295,217.9,217.86,6.40443484]
[1734345429918,2.2948,217.91,217.87,2.2952]
[1734345430710,2.295,217.9,217.86,6.40443484]
[1734345432406,2.295,217.9,217.86,8.69973484]
[1734345432925,8.52443484,217.97,217.9,2.2948]
[1734345433207,4.6294,218.01,217.93,6.40443484]
[1734345433409,6.40443484,217.99,217.93,6.40443484]
[1734345433609,6.40443484,217.97,217.91,8.69923484]
[1734345435314,2.2944,217.96,217.91,8.69923484]
[1734345435527,6.40443484,217.97,217.91,6.40443484]
[1734345436915,2.2946,217.94,217.9,8.52443484]
[1734345438204,2.2944,217.95,217.9,6.40443484]
[1734345438409,6.40443484,217.97,217.9,6.40443484]
[1734345438709,6.40443484,217.97,217.77,0.20067]
[1734345438710,2.2948,217.91,217.87,2.2951]
[1734345438912,6.40443484,217.93,217.86,8.52443484]
[1734345439209,6.40443484,217.93,217.86,6.40443484]
[1734345439414,2.2948,217.91,217.86,8.69963484]
[1734345439919,2.2948,217.91,217.86,6.40443484]
[1734345440415,2.2948,217.91,217.84,2.12]
[1734345440416,2.2948,217.91,217.88,6.40443484]
[1734345441013,4.6294,218.01,217.91,2.2948]
[1734345441211,6.40443484,217.97,217.91,2.2948]
[1734345441716,2.2945,217.94,217.9,6.40443484]
[1734345441911,6.40443484,217.97,217.9,6.40443484]
[1734345443513,6.40443484,217.95,217.88,8.52443484]
[1734345443712,6.40443484,217.93,217.87,6.40443484]
[1734345444517,2.12,217.99,217.89,6.40443484]
[1734345444719,6.40443484,217.97,217.91,6.40443484]
[1734345445615,2.2945,217.94,217.91,8.69923484]
[1734345445913,2.2945,217.94,217.91,6.40443484]
[1734345447517,5.44933051,218.02,217.91,6.40443484]
[1734345447518,4.5852,218.13,217.93,6.40443484]
[1734345447720,6.40443484,218.06,217.99,6.40443484]
[1734345448117,2.2936,218.03,217.99,6.40443484]
[1734345448812,6.40443484,218.06,217.99,6.40443484]
[1734345449033,2.2937,218.02,217.99,6.40443484]
[1734345450216,2.2936,218.03,217.99,6.40443484]
[1734345451020,6.40443484,218.06,217.99,6.40443484]
[1734345452017,2.2935,218.04,217.99,8.69843484]
[1734345453622,2.2934,218.05,218.01,2.2938]
[1734345453928,6.40443484,218.08,218.01,8.69823484]
[1734345454527,2.2932,218.06,218.01,8.69823484]
[1734345455521,2.8906,218.09,218.01,6.40443484]
[1734345455721,5.1836,218.09,218.04,2.2934]
[1734345455918,2.8906,218.09,218.03,6.40443484]
[1734345457230,251.5255098,218.16,218.03,6.40443484]
[1734345457526,251.5255098,218.16,217.97,5.42413505]
[1734345457527,6.40443484,218.13,218.05,6.40443484]
[1734345457824,2.12,218.15,218.05,10.81773484]
[1734345457825,2.2929,218.1,218.05,10.81773484]
[1734345458021,6.40443484,218.11,218.05,2.12]
[1734345458825,6.40443484,218.11,218.03,6.40443484]
[1734345459129,6.40443484,218.09,218.01,8.52443484]
[1734345459836,6.40443484,218.07,218.01,2.12]
[1734345460129,6.40443484,218.07,218.0,6.40443484]
[1734345460327,2.2935,218.04,218.0,6.40443484]
[1734345460530,6.40443484,218.07,218.0,6.40443484]
[1734345462224,2.2935,218.04,218.0,6.40443484]
[1734345463329,6.40443484,218.07,218.0,6.40443484]
[1734345463656,2.2936,218.03,218.0,6.40443484]
[1734345464224,2.2936,218.03,218.02,6.40443484]
[1734345469634,2.2933,218.06,218.02,8.69813484]
[1734345469932,2.2933,218.06,218.04,6.40443484]
[1734345471030,4.6149,218.1,218.04,6.40443484]
[1734345471337,251.5255098,218.12,218.06,6.40443484]
[1734345471531,8.52443484,218.13,218.06,6.40443484]
[1734345472030,2.2928,218.11,218.06,8.69763484]
[1734345472231,8.52443484,218.13,218.06,8.69763484]
[1734345472430,8.52443484,218.13,218.06,6.40443484]
[1734345472632,6.40443484,218.13,218.06,6.40443484]
[1734345472971,6.40443484,218.13,218.06,8.69783484]
[1734345473831,2.2932,218.09,218.06,6.40443484]
[1734345475436,6.40443484,218.13,218.06,6.40443484]
[1734345475635,6.40443484,218.11,218.04,6.40443484]
[1734345476336,2.2934,218.08,218.04,8.69803484]
[1734345477134,2.2934,218.07,218.04,8.69803484]
[1734345478537,2.2931,218.1,218.06,8.69793484]
[1734345478839,6.40443484,218.13,218.06,6.40443484]
[1734345479740,2.2932,218.09,218.06,6.40443484]
[1734345480135,6.40443484,218.13,218.06,6.40443484]
[1734345480336,6.40443484,218.11,218.02,2.12]
[1734345480533,6.40443484,218.09,218.02,8.52443484]
[1734345481145,251.5255098,218.11,218.02,8.52443484]
[1734345481146,2.2934,218.07,218.04,6.40443484]
[1734345482445,2.2935,218.06,218.04,6.40443484]
[1734345482645,2.2935,218.06,218.03,2.2937]
[1734345482940,2.2935,218.06,218.03,8.69813484]
[1734345484141,2.2936,218.05,218.03,6.40443484]
[1734345484344,251.5255098,218.08,218.03,6.40443484]
[1734345485841,2.2934,218.07,218.03,6.40443484]
[1734345486041,251.5255098,218.08,218.03,6.40443484]
[1734345486438,257.92994464,218.1,218.03,6.40443484]
[1734345487443,2.2936,218.05,218.03,6.40443484]
[1734345494750,251.5255098,218.09,218.03,6.40443484]
[1734345494955,251.5255098,218.09,218.07,6.40443484]
[1734345495145,251.5255098,218.09,218.07,8.69773484]
[1734345495450,251.5255098,218.09,218.07,6.40443484]
[1734345495655,261.51074464,218.15,218.07,6.40443484]
[1734345495849,2.2931,218.1,218.07,6.40443484]
[1734345496961,6.40443484,218.13,218.05,8.52443484]
[1734345497154,7.20417053,218.11,218.05,8.52443484]
[1734345497997,258.72968033,218.11,218.05,8.52443484]
[1734345498154,251.5255098,218.11,218.05,8.52443484]
[1734345498456,2.2933,218.08,218.05,8.52443484]
[1734345499753,251.5255098,218.12,218.05,6.40443484]
[1734345499951,2.2932,218.09,218.05,6.40443484]
[1734345501259,2.2932,218.09,218.05,8.52443484]
[1734345501456,2.2932,218.09,218.06,2.2935]
[1734345501753,2.2932,218.09,218.07,6.40443484]
[1734345502256,261.51074464,218.15,218.07,8.69773484]
[1734345502257,2.293,218.11,218.07,8.69773484]
[1734345502554,261.51074464,218.15,218.07,8.69773484]
[1734345502850,2.293,218.11,218.07,8.69773484]
[1734345503054,261.51074464,218.15,218.07,8.69773484]
[1734345503247,259.39074464,218.15,218.07,8.69773484]
[1734345503857,2.293,218.11,218.07,8.69773484]
[1734345504561,2.2931,218.1,218.07,8.69773484]
[1734345504758,2.2931,218.1,218.07,6.40443484]
[1734345504958,6.40443484,218.13,218.07,6.40443484]
[1734345505660,7.20013704,218.14,218.07,6.40443484]
[1734345505853,2.2929,218.12,218.07,6.40443484]
[1734345506056,13.60457188,218.14,218.07,6.40443484]
[1734345507060,2.2931,218.1,218.07,6.40443484]
[1734345507957,2.2932,218.09,218.07,6.40443484]
[1734345509162,251.5255098,218.12,218.05,2.12]
[1734345509461,2.2934,218.07,218.05,6.40443484]
[1734345510263,6.40443484,218.09,217.87,4.591]
[1734345510481,251.5255098,218.08,218.02,6.40443484]
[1734345510768,251.5255098,218.08,218.01,6.40443484]
[1734345512558,2.2939,218.03,218.01,6.40443484]
[1734345514967,251.5255098,218.08,218.01,6.40443484]
[1734345515467,2.2939,218.03,218.01,6.40443484]
[1734345515670,251.5255098,218.08,218.01,6.40443484]
[1734345516062,2.2939,218.03,218.01,6.40443484]
[1734345517566,2.12,218.09,218.01,6.40443484]
[1734345517760,2.12,218.09,218.04,6.40443484]
[1734345518568,2.2937,218.05,218.04,6.40443484]
[1734345521778,2.2935,218.06,218.04,6.40443484]
[1734345521985,2.2935,218.06,218.05,6.40443484]
[1734345523181,2.2934,218.07,218.05,6.40443484]
[1734345524672,2.2935,218.06,218.05,6.40443484]
[1734345525583,2.2937,218.04,218.0,4.414]
[1734345525779,2.2937,218.04,218.03,6.40443484]
[1734345526184,2.2937,218.04,218.0,4.414]
[1734345526384,11.02923484,218.1,218.02,6.40443484]
[1734345526385,2.2938,218.03,218.02,6.40443484]
[1734345527385,2.2937,218.04,218.02,6.40443484]
[1734345529692,2.2938,218.03,218.02,6.40443484]
[1734345533986,7.1970782,218.07,218.02,6.40443484]
[1734345534194,7.1970782,218.07,218.0,2.12]
[1734345534195,2.2937,218.05,218.04,6.40443484]
[1734345538999,256.1503098,218.1,218.04,6.40443484]
[1734345539199,256.1503098,218.1,218.0,2.12]
[1734345539200,254.6143098,218.1,218.07,6.40443484]
[1734345539996,3.0888,218.1,218.07,6.40443484]
[1734345540903,2.2934,218.07,218.03,2.2938]
[1734345541105,2.12,218.09,217.99,5.50075571]
[1734345541303,6.40443484,218.08,218.02,6.40443484]
[1734345542103,2.2938,218.03,218.02,6.40443484]
[1734345549002,2.2943,217.98,217.79,4.5927]
[1734345549304,2.2943,217.98,217.97,6.40443484]
[1734345555515,251.5255098,218.03,217.97,6.40443484]
[1734345555708,251.5255098,218.03,218.02,6.40443484]
[1734345555908,251.5255098,218.03,218.02,1.83424851]
[1734345556308,251.5255098,218.05,218.02,1.83424851]
[1734345556508,253.8191098,218.05,218.04,6.40443484]
[1734345556709,258.72321522,218.05,218.02,6.40443484]
[1734345557012,251.5255098,218.05,218.02,6.40443484]
[1734345557454,255.2207098,218.07,218.02,6.40443484]
[1734345557711,2.2942,217.99,217.97,2.12]
[1734345558013,2.2942,217.99,217.98,6.40443484]
[1734345559014,251.5255098,218.05,217.98,6.40443484]
[1734345559216,2.2941,218.0,217.95,9.8309151]
[1734345559538,2.2941,218.0,217.96,5.08532632]
[1734345559713,2.2941,218.0,217.97,5.08532632]
[1734345560013,2.2941,218.0,217.98,5.08532632]
[1734345560216,2.2941,218.0,217.96,2.2945]
[1734345560407,2.2941,218.0,217.99,6.40443484]
[1734345562117,2.294,218.01,217.99,6.40443484]
[1734345562307,2.294,218.01,218.0,6.40443484]
[1734345563913,40.67966439,218.06,218.0,6.40443484]
[1734345564121,40.67966439,218.06,218.03,6.40443484]
[1734345564417,40.67966439,218.06,218.05,6.40443484]
[1734345564613,251.5255098,218.09,218.05,6.40443484]
[1734345564919,2.2935,218.06,218.05,6.40443484]
[1734345567607,2.2936,218.05,218.0,2.2941]
[1734345567813,2.2936,218.05,218.04,6.40443484]
[1734345569117,2.2935,218.06,218.04,6.40443484]
[1734345570720,257.92994464,218.08,217.95,5.4163151]
[1734345570916,257.92994464,218.08,218.0,6.40443484]
[1734345571114,260.84516583,218.07,218.0,6.40443484]
[1734345571313,2.294,218.01,218.0,6.40443484]
[1734345571614,2.294,218.01,217.97,2.12]
[1734345572118,2.294,218.01,218.0,6.40443484]
[1734345572518,2.2939,218.02,218.0,6.40443484]
[1734345572716,2.2939,218.02,218.01,6.40443484]
[1734345574716,2.2937,218.04,218.01,6.40443484]
[1734345574916,2.2937,218.04,218.03,6.40443484]
[1734345577919,2.2937,218.04,217.98,2.2943]
[1734345577920,2.2938,218.03,217.98,2.2943]
[1734345578117,2.2938,218.03,218.02,6.40443484]
[1734345581821,7.19816209,218.08,217.98,5.60703296]
[1734345582024,7.19816209,218.08,218.0,6.40443484]
[1734345582480,258.72367189,218.08,218.0,6.40443484]
[1734345582725,2.2939,218.02,218.0,6.40443484]
[1734345585329,7.19816209,218.06,217.99,6.40443484]
[1734345585520,10.78936209,218.06,217.99,6.40443484]
[1734345585715,2.2941,218.0,217.99,6.40443484]
[1734345587818,2.2939,218.02,217.99,6.40443484]
[1734345588016,251.5255098,218.04,218.02,6.40443484]
[1734345588225,252.9967098,218.06,218.02,6.40443484]
[1734345589626,2.2938,218.03,218.02,6.40443484]
[1734345592024,2.2937,218.04,218.02,6.40443484]
[1734345594724,251.5255098,218.09,218.02,6.40443484]
[1734345595025,7.20494878,218.08,218.02,6.40443484]
[1734345596328,2.2935,218.07,218.02,6.40443484]
[1734345596524,7.20494878,218.08,218.02,6.40443484]
[1734345597626,2.2938,218.03,218.02,6.40443484]
[1734345597929,7.20494878,218.07,217.99,2.12]
[1734345598120,2.2939,218.02,217.99,2.12]
[1734345600433,7.20494878,218.06,217.99,2.12]
[1734345600729,7.20494878,218.06,218.02,6.40443484]
[1734345601228,7.20494878,218.06,217.95,5.61835471]
[1734345601429,8.52443484,218.05,217.95,7.73835471]
[1734345601631,27.32874777,218.05,217.98,6.40443484]
[1734345601833,268.80842273,218.04,217.98,6.40443484]
[1734345602027,7.20494878,218.03,217.98,6.40443484]
[1734345602326,13.60938362,218.03,217.92,2.2949]
[1734345602528,1.504,218.02,217.96,6.40443484]
[1734345603033,253.0295098,218.02,217.96,6.40443484]
[1734345603432,2.2944,217.98,217.96,6.40443484]
[1734345603632,253.0295098,218.02,217.96,6.40443484]
[1734345604435,2.2941,218.01,217.96,6.40443484]
[1734345604631,253.0295098,218.02,217.96,6.40443484]
[1734345605234,1.504,218.02,217.96,6.40443484]
[1734345605438,2.2944,217.98,217.96,6.40443484]
[1734345605641,2.2944,217.98,217.93,9.87243999]
[1734345605937,2.2944,217.98,217.96,6.40443484]
[1734345608938,6.40443484,218.01,217.96,6.40443484]
[1734345609140,2.2944,217.97,217.96,6.40443484]
[1734345609747,2.2945,217.96,217.94,6.40443484]
[1734345612238,2.2945,217.96,217.92,2.2949]
[1734345612239,6.40443484,217.99,217.84,52.48]
[1734345612450,6.40443484,217.99,217.92,6.40443484]
[1734345612839,2.2948,217.94,217.92,6.40443484]
[1734345613438,2.2946,217.96,217.92,8.50443484]
[1734345613638,251.5255098,218.0,217.96,6.40443484]
[1734345614446,2.2944,217.97,217.96,6.40443484]
[1734345614646,7.90843484,218.02,217.94,6.40443484]
[1734345615251,6.40443484,218.0,217.94,6.40443484]
[1734345615940,6.40443484,218.0,217.93,2.2948]
[1734345616142,6.40443484,218.0,217.94,6.40443484]
[1734345618249,2.2946,217.96,217.94,6.40443484]
[1734345620750,2.2946,217.95,217.94,6.40443484]
[1734345622950,6.40443484,217.98,217.9,7.9400928]
[1734345623252,6.40443484,217.98,217.91,8.52443484]
[1734345624148,2.2947,217.94,217.91,10.81943484]
[1734345627045,2.2947,217.94,217.91,8.52443484]
[1734345629555,2.2947,217.94,217.93,6.40443484]
[1734345630258,253.0295098,218.02,217.93,6.40443484]
[1734345630458,1.504,218.02,217.96,6.40443484]
[1734345632154,6.40443484,218.01,217.95,2.12]
[1734345632361,6.40443484,218.01,217.94,6.40443484]
[1734345633757,6.40443484,218.01,217.94,8.69913484]
[1734345633758,2.2942,217.99,217.94,8.69913484]
[1734345634159,253.0295098,218.02,217.96,6.40443484]
[1734345634865,1.5214,218.05,217.98,6.40443484]
[1734345635059,257.92994464,218.06,218.0,6.40443484]
[1734345635265,251.5255098,218.06,218.0,6.40443484]
[1734345635761,2.2937,218.04,218.0,6.40443484]
[1734345635960,251.5255098,218.06,218.0,6.40443484]
[1734345636264,253.0653098,218.08,218.02,6.40443484]
[1734345637163,1.5398,218.08,218.02,6.40443484]
[1734345637558,2.2935,218.06,218.02,6.40443484]
[1734345638260,2.2936,218.05,218.02,6.40443484]
[1734345639960,2.2936,218.05,218.04,6.40443484]
[1734345640867,2.2934,218.07,218.04,6.40443484]
[1734345641064,42.89401334,218.09,218.06,6.40443484]
[1734345641256,2.2931,218.1,218.08,6.40443484]
[1734345641962,1.4969,218.13,218.08,6.40443484]
[1734345642264,2.2932,218.09,218.06,8.50443484]
[1734345642461,6.40443484,218.12,217.9,5.6449928]
[1734345642660,6.40443484,218.12,218.04,6.40443484]
[1734345642959,6.40443484,218.12,218.06,6.40443484]
[1734345643467,2.2934,218.08,218.06,6.40443484]
[1734345646967,2.2934,218.07,218.06,6.40443484]
[1734345647162,6.40443484,218.12,218.02,4.3939]
[1734345647358,6.40443484,218.12,218.06,6.40443484]
[1734345647862,2.2934,218.07,218.04,6.40443484]
[1734345648063,6.40443484,218.12,218.04,6.40443484]
[1734345648365,2.2936,218.06,218.04,6.40443484]
[1734345649459,2.2936,218.05,218.04,6.40443484]
[1734345649959,2.1,218.1,217.92,2.5541]
[1734345649960,6.40443484,218.08,217.97,2.1]
[1734345650169,2.1,218.07,218.0,6.40443484]
[1734345650564,1.5069,218.06,218.0,6.40443484]
[1734345652075,2.294,218.02,218.0,6.40443484]
[1734345652267,1.5069,218.06,218.0,6.40443484]